bitfinex/quotes_SOLUSD_20251125
["timestamp","ask_amount","ask_price","bid_price","bid_amount"]
[1764032265342,4.37979983,138.74,138.69,0.71]
[1764032265815,37.50630276,138.76,138.69,25.94594962]
[1764032265816,19.488864,138.76,138.69,25.94594962]
[1764032266018,4.37979983,138.75,138.69,25.94594962]
[1764032266330,4.37979983,138.73,138.7,0.71]
[1764032267843,4.37979983,138.73,138.7,7.91978267]
[1764032268425,4.37979983,138.73,138.71,0.71]
[1764032268743,4.37979983,138.73,138.71,63.21]
[1764032269129,4.37979983,138.73,138.72,0.71]
[1764032269641,27.89545784,138.76,138.72,0.71]
[1764032269830,4.37979983,138.75,138.72,0.71]
[1764032271948,4.37979983,138.74,138.72,0.71]
[1764032272750,20.68866383,138.76,138.72,7.9186292]
[1764032272950,4.37979983,138.76,138.72,7.9186292]
[1764032273250,4.37979983,138.75,138.73,0.68]
[1764032275332,4.37979983,138.74,138.71,66.39]
[1764032275532,4.37979983,138.74,138.72,0.71]
[1764032276340,4.37979983,138.73,138.72,0.71]
[1764032276558,4.37979983,138.73,138.72,63.21]
[1764032277938,4.37979983,138.74,138.72,63.21]
[1764032280966,4.37979983,138.74,138.73,0.71]
[1764032281167,4.37979983,138.75,138.73,0.71]
[1764032282656,4.37979983,138.76,138.73,0.71]
[1764032282869,4.37979983,138.76,138.73,66.39]
[1764032283069,11.58656013,138.76,138.73,66.39]
[1764032283368,11.58656013,138.76,138.74,0.71]
[1764032283973,4.37979983,138.76,138.74,0.71]
[1764032285650,11.58652954,138.76,138.74,0.71]
[1764032285862,4.37979983,138.75,138.74,0.71]
[1764032286147,4.37979983,138.75,138.73,62.5]
[1764032286356,11.58752651,138.74,138.73,62.5]
[1764032286572,7.20772668,138.74,138.73,62.5]
[1764032286777,11.58752651,138.74,138.73,62.5]
[1764032287240,11.58752651,138.74,138.71,3.89]
[1764032287447,4.37979983,138.72,138.71,3.89]
[1764032287642,4.37979983,138.72,138.71,65.68]
[1764032287882,4.37979983,138.73,138.71,65.68]
[1764032288250,4.37979983,138.73,138.72,0.71]
[1764032288971,11.58804606,138.73,138.72,0.71]
[1764032289172,16.308864,138.75,138.72,0.71]
[1764032289353,4.37979983,138.73,138.72,0.71]
[1764032289550,4.37979983,138.73,138.71,3.89]
[1764032289774,4.37979983,138.72,138.71,3.89]
[1764032290067,4.37979983,138.72,138.71,0.71]
[1764032290572,4.37979983,138.72,138.68,0.71]
[1764032290573,12.01856568,138.72,138.68,0.71]
[1764032290771,4.37979983,138.71,138.69,0.71]
[1764032294875,4.80979983,138.7,138.67,0.2]
[1764032295074,4.37979983,138.69,138.67,0.2]
[1764032295372,4.37979983,138.7,138.67,0.2]
[1764032295574,4.37979983,138.7,138.68,0.71]
[1764032297388,4.37979983,138.69,138.67,0.2]
[1764032297688,4.37979983,138.69,138.67,0.91]
[1764032298766,4.37979983,138.68,138.67,0.91]
[1764032298966,4.37979983,138.68,138.67,0.2]
[1764032299182,11.59064494,138.68,138.67,0.2]
[1764032309590,16.308864,138.68,138.67,0.86]
[1764032309798,4.37979983,138.68,138.67,0.86]
[1764032310895,4.37979983,138.68,138.67,0.2]
[1764032311267,27.89950894,138.68,138.67,0.2]
[1764032313077,28.32950894,138.68,138.67,0.2]
[1764032313589,27.89950894,138.68,138.67,0.86]
[1764032313894,27.89950894,138.68,138.67,0.2]
[1764032314396,27.89950894,138.68,138.67,0.86]
[1764032315176,20.68866383,138.68,138.67,0.86]
[1764032315381,27.89950894,138.68,138.67,0.86]
[1764032315574,20.68866383,138.68,138.67,0.86]
[1764032317070,4.37979983,138.68,138.67,0.86]
[1764032317270,4.37979983,138.69,138.67,0.86]
[1764032317479,4.37979983,138.69,138.68,0.66]
[1764032318080,11.5901302,138.69,138.67,0.2]
[1764032318281,4.37979983,138.68,138.67,0.86]
[1764032318579,2.80228199,138.68,138.67,0.2]
[1764032318783,2.80228199,138.68,138.67,0.86]
[1764032321201,2.80228199,138.68,138.67,0.2]
[1764032321401,2.80228199,138.68,138.67,0.86]
[1764032322784,10.0131271,138.68,138.67,0.86]
[1764032324612,10.0131271,138.68,138.67,0.2]
[1764032330882,26.7519911,138.68,138.67,0.2]
[1764032335830,26.3219911,138.68,138.67,0.2]
[1764032336513,26.7519911,138.68,138.67,0.2]
[1764032338732,26.3219911,138.68,138.67,0.2]
[1764032339110,29.5019911,138.68,138.67,0.2]
[1764032340601,26.3219911,138.68,138.67,0.2]
[1764032342210,13.24540909,138.68,138.67,0.2]
[1764032346927,10.0131271,138.68,138.67,0.2]
[1764032349250,26.3219911,138.68,138.67,0.2]
[1764032349536,26.3219911,138.68,138.67,0.91]
[1764032353408,29.21352252,138.68,138.67,0.91]
[1764032354130,26.3219911,138.68,138.67,0.91]
[1764032354513,26.3219911,138.68,138.67,0.2]
[1764032354833,26.3219911,138.68,138.67,0.91]
[1764032359408,29.21352252,138.68,138.67,0.91]
[1764032360838,19.11114599,138.68,138.67,0.91]
[1764032363117,16.308864,138.68,138.67,0.91]
[1764032367740,19.11114599,138.68,138.67,0.91]
[1764032368632,26.3219911,138.68,138.67,0.91]
[1764032369226,29.5019911,138.68,138.67,0.91]
[1764032369622,26.3219911,138.68,138.67,0.91]
[1764032372827,29.5019911,138.68,138.67,0.91]
[1764032378653,26.3219911,138.68,138.67,0.91]
[1764032380155,29.5019911,138.68,138.67,0.91]
[1764032380338,26.3219911,138.68,138.67,0.91]
[1764032380540,27.89795591,138.68,138.67,0.91]
[1764032380734,20.6871108,138.68,138.67,0.91]
[1764032381049,16.308864,138.68,138.67,0.91]
[1764032382545,20.6871108,138.68,138.67,0.91]
[1764032383055,27.89795591,138.68,138.67,0.91]
[1764032383241,27.89795591,138.68,138.67,0.2]
[1764032383439,27.89795591,138.68,138.67,0.89]
[1764032383440,31.07795591,138.68,138.67,0.89]
[1764032383848,31.07795591,138.68,138.67,0.2]
[1764032384242,31.07795591,138.68,138.67,0.89]
[1764032384551,31.07795591,138.68,138.67,0.2]
[1764032389058,31.07795591,138.68,138.67,0.89]
[1764032389267,27.89795591,138.68,138.67,0.89]
[1764032390445,20.6871108,138.68,138.67,0.89]
[1764032391446,27.89795591,138.68,138.67,0.89]
[1764032394534,20.6871108,138.68,138.67,0.89]
[1764032394740,16.308864,138.68,138.67,0.89]
[1764032397269,20.6871108,138.68,138.67,0.89]
[1764032397565,14.42275174,138.7,138.67,0.89]
[1764032397869,23.51877168,138.7,138.68,0.69]
[1764032398075,4.3782468,138.69,138.68,0.69]
[1764032400155,23.51877168,138.7,138.68,0.69]
[1764032400350,16.308864,138.7,138.68,0.69]
[1764032400672,4.37635076,138.7,138.68,0.69]
[1764032401373,4.37635076,138.73,138.69,3.18]
[1764032401757,4.37635076,138.73,138.7,0.69]
[1764032401960,4.37635076,138.74,138.7,0.69]
[1764032402281,7.20740944,138.75,138.7,0.69]
[1764032402282,4.37635076,138.75,138.7,0.69]
[1764032402959,23.51509219,138.77,138.71,13.18629568]
[1764032402960,4.37635076,138.77,138.71,13.18629568]
[1764032403368,4.37635076,138.77,138.72,7.89876585]
[1764032403571,4.37635076,138.74,138.72,0.69]
[1764032403875,4.37635076,138.74,138.69,41.5449858]
[1764032403876,4.37635076,138.74,138.73,0.69]
[1764032404264,4.37635076,138.74,138.68,21.67238576]
[1764032404467,4.37635076,138.7,138.69,0.69]
[1764032404680,4.37635076,138.7,138.68,0.69]
[1764032404979,16.308864,138.71,138.67,0.89]
[1764032405196,4.37635076,138.68,138.67,0.89]
[1764032405397,11.58719587,138.68,138.67,0.89]
[1764032405676,27.89605987,138.68,138.67,0.2]
[1764032406182,28.32605987,138.68,138.67,0.2]
[1764032406480,32.70241063,138.68,138.67,0.2]
[1764032407380,32.70241063,138.68,138.64,1e-08]
[1764032407381,7.21188518,138.66,138.64,1e-08]
[1764032407581,7.55635076,138.65,138.64,1e-08]
[1764032407785,7.98635076,138.65,138.64,1e-08]
[1764032408566,7.55635076,138.65,138.64,1e-08]
[1764032408759,7.98635076,138.65,138.64,1e-08]
[1764032409168,7.55635076,138.65,138.64,1e-08]
[1764032409487,31.07762009,138.65,138.64,1e-08]
[1764032410064,27.89762009,138.65,138.64,1e-08]
[1764032412484,30.78977872,138.65,138.64,1e-08]
[1764032412788,14.48091472,138.65,138.64,1e-08]
[1764032412971,23.72085964,138.65,138.64,1e-08]
[1764032414073,16.308864,138.62,138.59,0.2]
[1764032414277,4.37635076,138.6,138.59,0.89]
[1764032414966,16.308864,138.62,138.59,0.89]
[1764032415170,4.37635076,138.6,138.59,0.2]
[1764032415391,20.68521476,138.6,138.59,0.2]
[1764032415592,32.70657273,138.6,138.59,0.2]
[1764032415829,47.58993151,138.6,138.59,0.2]
[1764032416164,8.80994492,138.59,138.58,0.2]
[1764032416402,13.61629568,138.59,138.58,0.2]
[1764032417082,16.308864,138.56,138.55,0.2]
[1764032417417,20.68521476,138.56,138.55,0.2]
[1764032417717,27.90230482,138.56,138.55,0.2]
[1764032418212,28.33230482,138.56,138.55,0.2]
[1764032420297,27.90230482,138.56,138.55,0.2]
[1764032420505,7.21641274,138.58,138.55,0.89]
[1764032420827,20.68521476,138.56,138.55,0.89]
[1764032420984,4.37635076,138.56,138.55,0.89]
[1764032421190,20.68521476,138.56,138.55,0.89]
[1764032422083,20.68521476,138.56,138.55,0.2]
[1764032422490,27.90230482,138.56,138.55,0.2]
[1764032423016,31.51230482,138.56,138.55,0.2]
[1764032424006,31.08230482,138.56,138.55,0.2]
[1764032424216,31.51230482,138.56,138.55,0.2]
[1764032424833,28.33230482,138.56,138.55,0.2]
[1764032425001,31.08230482,138.56,138.55,0.2]
[1764032425208,31.08230482,138.56,138.55,0.86]
[1764032425903,23.86521476,138.56,138.55,0.86]
[1764032426095,31.08230482,138.56,138.55,0.86]
[1764032426295,31.08230482,138.56,138.55,0.2]
[1764032427022,31.08230482,138.56,138.55,0.86]
[1764032427325,27.90230482,138.56,138.55,0.86]
[1764032428021,31.08230482,138.56,138.55,0.2]
[1764032428354,31.51230482,138.56,138.55,0.2]
[1764032428524,8.80994492,138.55,138.54,0.2]
[1764032428694,8.80994492,138.55,138.51,0.2]
[1764032428695,16.308864,138.52,138.51,0.2]
[1764032428895,7.55635076,138.52,138.51,0.2]
[1764032429219,7.98635076,138.52,138.51,0.2]
[1764032429522,8.80994492,138.5,138.41,7.22475359]
[1764032429699,29.49515968,138.51,138.43,0.66]
[1764032429700,4.37635076,138.44,138.43,0.66]
[1764032430838,11.59991133,138.44,138.41,0.66]
[1764032431006,4.37635076,138.42,138.41,0.66]
[1764032431612,4.37635076,138.42,138.39,0.66]
[1764032431806,4.37635076,138.4,138.39,0.66]
[1764032432008,4.37635076,138.4,138.37,0.66]
[1764032432219,4.37635076,138.38,138.37,0.66]
[1764032432527,16.308864,138.38,138.37,0.66]
[1764032432726,27.97433312,138.38,138.37,0.66]
[1764032432909,11.66546912,138.39,138.37,0.66]
[1764032433109,11.66546912,138.38,138.37,0.66]
[1764032434227,16.308864,138.39,138.37,0.66]
[1764032434526,27.97433312,138.39,138.37,0.66]
[1764032435027,27.97433312,138.39,138.37,7.88698142]
[1764032435207,27.97433312,138.39,138.37,0.66]
[1764032435413,27.97433312,138.39,138.38,0.66]
[1764032437539,16.308864,138.39,138.36,0.66]
[1764032437709,11.66546912,138.38,138.37,0.66]
[1764032438605,11.66546912,138.38,138.35,0.66]
[1764032438826,11.66546912,138.36,138.35,0.66]
[1764032439109,11.66546912,138.36,138.32,7.88954649]
[1764032439303,11.66546912,138.35,138.33,0.66]
[1764032439501,11.66546912,138.34,138.33,0.66]
[1764032439929,11.66546912,138.35,138.33,0.66]
[1764032440514,6.70243678,138.35,138.33,0.66]
[1764032440839,6.70243678,138.35,138.33,7.88902546]
[1764032441131,6.70243678,138.35,138.33,0.66]
[1764032441336,6.70243678,138.35,138.34,0.66]
[1764032442015,6.70243678,138.35,138.31,7.2301352]
[1764032442232,7.2265491,138.38,138.3,12.20994492]
[1764032442233,6.70243678,138.34,138.32,0.66]
[1764032442434,6.70243678,138.33,138.3,7.43047854]
[1764032442731,6.70243678,138.33,138.31,0.66]
[1764032442931,6.70243678,138.34,138.31,0.66]
[1764032443313,7.2270296,138.37,138.3,0.2]
[1764032443613,16.308864,138.28,138.24,0.76]
[1764032443813,6.70243678,138.25,138.24,0.76]
[1764032444230,6.70243678,138.25,138.24,0.1]
[1764032444418,6.70243678,138.26,138.24,0.76]
[1764032445644,6.70243678,138.25,138.22,0.66]
[1764032445814,23.97067479,138.28,138.22,0.66]
[1764032445815,16.308864,138.27,138.22,0.66]
[1764032446137,6.70243678,138.25,138.23,0.66]
[1764032446519,6.70243678,138.24,138.23,0.66]
[1764032446829,27.17071276,138.28,138.23,0.66]
[1764032446830,6.70243678,138.25,138.23,0.66]
[1764032447033,6.70243678,138.27,138.23,7.89430675]
[1764032447232,27.31325345,138.33,138.23,7.89430675]
[1764032447233,16.308864,138.29,138.23,7.89430675]
[1764032447419,6.70243678,138.27,138.24,0.66]
[1764032448127,16.308864,138.28,138.24,0.66]
[1764032448128,6.70243678,138.26,138.24,0.66]
[1764032448740,6.70243678,138.26,138.24,7.89362601]
[1764032449125,6.70243678,138.27,138.24,7.89362601]
[1764032449426,6.70243678,138.26,138.25,0.66]
[1764032450243,6.70243678,138.26,138.23,0.66]
[1764032450427,6.70243678,138.26,138.24,0.66]
[1764032450622,16.308864,138.28,138.24,0.66]
[1764032450826,6.70243678,138.26,138.24,0.66]
[1764032451024,6.70243678,138.25,138.24,0.66]
[1764032451340,6.70243678,138.25,138.22,0.66]
[1764032451536,6.70243678,138.24,138.2,10.43575522]
[1764032451714,6.70243678,138.24,138.21,0.66]
[1764032451915,6.70243678,138.25,138.21,0.66]
[1764032452131,6.70243678,138.26,138.21,0.66]
[1764032452530,6.70243678,138.25,138.22,7.234843]
[1764032452737,6.70243678,138.26,138.22,7.234843]
[1764032453026,6.70243678,138.25,138.23,0.66]
[1764032454519,2.81932609,138.25,138.23,0.66]
[1764032455314,2.81932609,138.24,138.23,0.66]
[1764032455548,2.81932609,138.25,138.23,0.66]
[1764032456440,2.81932609,138.25,138.23,0.65]
[1764032456818,2.81932609,138.26,138.23,0.65]
[1764032457425,16.308864,138.28,138.23,7.88414505]
[1764032457619,2.81932609,138.26,138.23,0.65]
[1764032457817,16.308864,138.28,138.24,0.65]
[1764032457818,2.81932609,138.25,138.24,0.65]
[1764032458033,2.81932609,138.26,138.24,0.65]
[1764032458238,2.81932609,138.25,138.24,0.65]
[1764032458548,23.54062251,138.28,138.24,0.65]
[1764032458718,6.71236174,138.25,138.24,0.65]
[1764032460543,16.308864,138.28,138.24,0.65]
[1764032460544,6.71236174,138.26,138.24,0.65]
[1764032460930,6.71236174,138.25,138.24,0.65]
[1764032461730,6.71236174,138.25,138.23,0.65]
[1764032461930,6.71236174,138.24,138.23,0.65]
[1764032464341,6.71236174,138.24,138.2,10.43558061]
[1764032464542,6.71236174,138.23,138.22,0.65]
[1764032464747,6.71236174,138.23,138.18,0.65]
[1764032464925,6.71236174,138.2,138.17,3.2]
[1764032465127,16.308864,138.23,138.17,3.2]
[1764032465336,16.04457479,138.26,138.18,8.80994492]
[1764032465528,6.71236174,138.25,138.18,16.17230666]
[1764032465740,6.71236174,138.25,138.19,7.36236174]
[1764032466133,6.71236174,138.25,138.2,0.65]
[1764032466331,6.71236174,138.25,138.21,3.2]
[1764032466631,6.71236174,138.25,138.21,10.4348671]
[1764032466836,6.71236174,138.25,138.22,0.65]
[1764032467846,6.71236174,138.26,138.22,7.88451602]
[1764032468047,6.71236174,138.25,138.22,7.88451602]
[1764032468227,6.71236174,138.25,138.23,0.65]
[1764032469739,6.71236174,138.24,138.23,0.65]
[1764032470260,6.71236174,138.25,138.23,0.65]
[1764032470752,6.71236174,138.24,138.2,3.2]
[1764032470952,6.71236174,138.26,138.2,3.2]
[1764032471265,6.71236174,138.26,138.15,1.99999999]
[1764032471266,0.7,138.26,138.13,21.59906044]
[1764032471432,6.71236174,138.24,138.18,6.71236174]
[1764032471746,6.71236174,138.24,138.2,7.23589001]
[1764032472957,6.71236174,138.24,138.21,0.65]
[1764032473859,6.71236174,138.24,138.21,7.88525371]
[1764032474244,6.71236174,138.24,138.22,0.65]
[1764032475057,6.71236174,138.25,138.22,0.65]
[1764032475357,0.7,138.28,138.22,0.65]
[1764032475358,6.71236174,138.26,138.22,0.65]
[1764032475547,6.71236174,138.25,138.22,0.65]
[1764032475860,6.71236174,138.25,138.22,7.88454409]
[1764032476028,6.71236174,138.25,138.23,0.65]
[1764032476430,16.308864,138.27,138.23,0.65]
[1764032476635,23.02122574,138.27,138.23,0.65]
[1764032476845,16.308864,138.27,138.23,0.65]
[1764032477845,23.02122574,138.27,138.24,10.43339598]
[1764032478381,23.02122574,138.27,138.23,0.65]
[1764032478535,6.71236174,138.26,138.23,3.85]
[1764032478741,6.71236174,138.25,138.23,3.2]
[1764032479060,16.308864,138.27,138.24,0.71]
[1764032479239,6.71236174,138.27,138.24,0.71]
[1764032480065,6.71236174,138.27,138.24,7.94353003]
[1764032480534,6.71236174,138.27,138.25,0.71]
[1764032481641,6.71236174,138.26,138.23,3.91]
[1764032481840,16.308864,138.29,138.24,0.71]
[1764032482038,6.71236174,138.29,138.24,0.71]
[1764032482654,2.81742266,138.29,138.24,0.71]
[1764032483261,2.81742266,138.29,138.25,7.23327305]
[1764032483462,2.81742266,138.31,138.26,3.2]
[1764032483645,2.81742266,138.31,138.27,0.69]
[1764032483844,16.308864,138.32,138.27,0.69]
[1764032484053,2.81742266,138.31,138.27,0.69]
[1764032484242,19.12628666,138.32,138.27,0.69]
[1764032484853,2.81742266,138.3,138.27,0.69]
[1764032485164,33.55992914,138.5,138.29,2.81742266]
[1764032485371,33.55992914,138.5,138.3,25.30730295]
[1764032485372,3.50742266,138.38,138.3,25.30730295]
[1764032485555,2.81742266,138.39,138.31,29.00880892]
[1764032485761,2.81742266,138.37,138.33,8.80994492]
[1764032485971,2.81742266,138.37,138.32,0.69]
[1764032486171,2.81742266,138.36,138.32,0.69]
[1764032486553,2.81742266,138.35,138.32,0.69]
[1764032486753,2.81742266,138.36,138.32,3.89]
[1764032487177,2.81742266,138.36,138.33,0.69]
[1764032487851,2.81742266,138.37,138.33,7.91906227]
[1764032488068,0.69,138.38,138.33,7.91906227]
[1764032488275,2.81742266,138.37,138.34,0.69]
[1764032491272,2.81742266,138.36,138.34,0.69]
[1764032491449,23.53485721,138.39,138.29,0.69]
[1764032491450,2.81742266,138.35,138.29,0.69]
[1764032491656,2.81742266,138.3,138.27,0.69]
[1764032491854,2.81742266,138.3,138.27,3.89]
[1764032492597,2.81742266,138.3,138.27,3.2]
[1764032492764,2.81742266,138.3,138.28,0.69]
[1764032493298,2.81742266,138.29,138.27,3.89]
[1764032493461,2.81742266,138.29,138.26,10.43266699]
[1764032493657,2.81742266,138.29,138.26,11.12266699]
[1764032493850,2.81742266,138.29,138.27,0.69]
[1764032494564,6.70889826,138.28,138.26,3.2]
[1764032494782,6.70889826,138.28,138.26,3.89]
[1764032495381,6.70889826,138.29,138.26,3.89]
[1764032496285,6.70889826,138.28,138.26,3.89]
[1764032496879,6.70889826,138.3,138.27,0.69]
[1764032497886,16.308864,138.31,138.27,0.69]
[1764032498462,16.308864,138.33,138.27,0.69]
[1764032498656,6.70889826,138.35,138.28,15.51884318]
[1764032498981,6.90889826,138.4,138.31,7.2301352]
[1764032498982,6.70889826,138.36,138.31,7.2301352]
[1764032499181,6.70889826,138.36,138.31,28.5054732]
[1764032499386,6.70889826,138.35,138.32,0.69]
[1764032500366,6.70889826,138.35,138.33,7.22908985]
[1764032500688,16.998864,138.37,138.33,7.22908985]
[1764032500689,6.70889826,138.36,138.33,7.22908985]
[1764032500871,6.70889826,138.34,138.3,0.69]
[1764032501073,6.70889826,138.33,138.31,3.2]
[1764032501462,6.70889826,138.33,138.31,3.89]
[1764032501662,6.70889826,138.34,138.31,3.89]
[1764032502676,11.67197509,138.34,138.31,11.12007875]
[1764032504887,12.36197509,138.33,138.28,18.07838362]
[1764032505060,11.67197509,138.32,138.29,3.2]
[1764032505267,11.67197509,138.32,138.29,3.89]
[1764032506402,11.67197509,138.32,138.29,11.12071458]
[1764032506877,12.36197509,138.33,138.29,11.12071458]
[1764032507188,0.69,138.33,138.3,0.69]
[1764032508070,12.36197509,138.33,138.29,10.43071458]
[1764032508271,12.36197509,138.33,138.29,11.12071458]
[1764032509364,11.67197509,138.31,138.27,0.69]
[1764032509565,11.67197509,138.3,138.27,3.89]
[1764032509785,11.67197509,138.3,138.27,11.12221991]
[1764032512480,11.67197509,138.29,138.27,10.43221991]
[1764032512683,11.67197509,138.29,138.27,7.23221991]
[1764032513000,11.67197509,138.29,138.27,7.94221991]
[1764032513190,11.67197509,138.3,138.27,7.94221991]
[1764032513877,11.67197509,138.3,138.27,0.71]
[1764032514078,11.67197509,138.29,138.26,10.43269939]
[1764032514280,11.67197509,138.29,138.26,11.14269939]
[1764032515185,12.36197509,138.29,138.26,3.2]
[1764032515390,12.36197509,138.29,138.26,3.91]
[1764032515981,11.67197509,138.29,138.26,3.91]
[1764032516685,4.40256035,138.29,138.26,3.91]
[1764032519501,4.40256035,138.29,138.27,0.71]
[1764032519891,4.40256035,138.29,138.26,10.432658]
[1764032520079,4.40256035,138.29,138.26,11.142658]
[1764032520485,4.40256035,138.29,138.26,3.91]
[1764032521087,4.40256035,138.27,138.2,18.08967904]
[1764032521286,16.308864,138.28,138.22,8.80994492]
[1764032521495,16.308864,138.3,138.24,8.80994492]
[1764032521685,20.71142435,138.3,138.25,3.2]
[1764032521880,20.71142435,138.3,138.26,7.23274989]
[1764032522081,4.40256035,138.29,138.27,0.71]
[1764032522588,21.36142435,138.3,138.27,0.71]
[1764032522793,4.40256035,138.31,138.27,0.71]
[1764032523096,4.40256035,138.3,138.27,0.71]
[1764032523297,4.40256035,138.3,138.26,7.23274989]
[1764032523298,7.2281941,138.35,138.28,8.80994492]
[1764032523610,4.40256035,138.33,138.28,3.91]
[1764032523892,4.40256035,138.31,138.28,3.91]
[1764032524097,16.958864,138.34,138.28,7.94149936]
[1764032524098,4.40256035,138.32,138.28,7.94149936]
[1764032524290,4.40256035,138.32,138.28,10.43149936]
[1764032524596,12.32010841,138.35,138.29,0.71]
[1764032525286,12.32010841,138.35,138.29,12.38010841]
[1764032525474,27.97897241,138.36,138.3,11.67010841]
[1764032525674,16.308864,138.35,138.3,12.38010841]
[1764032525874,16.308864,138.35,138.31,0.71]
[1764032526178,11.67010841,138.35,138.32,3.2]
[1764032526370,12.32010841,138.35,138.32,3.2]
[1764032526773,11.67010841,138.33,138.32,3.2]
[1764032527886,11.67010841,138.33,138.28,18.07882131]
[1764032527887,12.32010841,138.33,138.28,18.78882131]
[1764032528089,12.32010841,138.33,138.3,3.2]
[1764032528295,11.67010841,138.34,138.3,3.2]
[1764032528491,12.32010841,138.34,138.3,3.91]
[1764032528693,12.32010841,138.34,138.3,3.2]
[1764032528903,16.308864,138.35,138.31,0.71]
[1764032529110,28.62897241,138.35,138.31,63.21]
[1764032529694,11.67010841,138.33,138.31,62.5]
[1764032531106,12.32010841,138.34,138.31,62.5]
[1764032533790,12.32010841,138.34,138.3,73.64017723]
[1764032535487,19.54876058,138.34,138.3,66.41]
[1764032535712,11.67010841,138.33,138.3,66.41]
[1764032538510,11.67010841,138.33,138.27,7.23184792]
[1764032538511,11.67010841,138.31,138.27,7.23184792]
[1764032538698,11.67010841,138.3,138.27,62.5]
[1764032539015,11.67010841,138.28,138.27,3.2]
[1764032539322,11.67010841,138.29,138.27,3.2]
[1764032539616,11.67010841,138.29,138.25,7.94312408]
[1764032539796,11.67010841,138.29,138.26,3.91]
[1764032539994,11.67010841,138.29,138.26,0.71]
[1764032540202,11.67010841,138.29,138.26,3.91]
[1764032542387,11.67010841,138.27,138.23,0.71]
[1764032542598,11.67010841,138.26,138.23,11.14409369]
[1764032543302,11.67010841,138.26,138.23,3.2]
[1764032543502,11.67010841,138.26,138.24,0.65]
[1764032544613,5.104294,138.27,138.24,0.65]
[1764032545104,4.404294,138.26,138.24,0.65]
[1764032545988,4.404294,138.27,138.24,7.88378634]
[1764032546191,4.404294,138.27,138.24,0.65]
[1764032547015,4.404294,138.27,138.24,7.88371522]
[1764032547390,4.404294,138.27,138.25,0.65]
[1764032547591,27.44026177,138.29,138.25,0.65]
[1764032547592,4.404294,138.28,138.25,0.65]
[1764032547820,4.404294,138.27,138.25,0.65]
[1764032548024,4.404294,138.27,138.24,0.65]
[1764032548505,4.404294,138.27,138.24,7.88355086]
[1764032548703,4.404294,138.27,138.25,0.65]
[1764032549018,4.404294,138.28,138.25,0.65]
[1764032550389,16.308864,138.3,138.26,3.2]
[1764032550588,4.404294,138.31,138.27,7.2322268]
[1764032550789,16.308864,138.31,138.27,25.9627938]
[1764032550992,4.404294,138.32,138.28,0.65]
[1764032551214,0.7,138.35,138.29,3.2]
[1764032551514,4.404294,138.34,138.29,3.2]
[1764032551700,4.404294,138.34,138.3,0.65]
[1764032551892,5.104294,138.34,138.3,0.65]
[1764032552494,4.404294,138.34,138.3,0.65]
[1764032552694,4.404294,138.35,138.31,7.2301352]
[1764032552907,4.404294,138.35,138.32,3.2]
[1764032553101,4.404294,138.35,138.32,3.85]
[1764032553715,7.92758328,138.36,138.33,0.65]
[1764032553716,0.7,138.36,138.33,0.65]
[1764032553916,4.404294,138.35,138.33,0.65]
[1764032554199,4.404294,138.35,138.32,3.85]
[1764032555514,5.104294,138.35,138.32,3.85]
[1764032557109,4.404294,138.34,138.32,3.2]
[1764032557430,4.404294,138.33,138.29,3.2]
[1764032557634,4.404294,138.32,138.29,0.65]
[1764032557802,5.104294,138.32,138.29,3.85]
[1764032558436,4.404294,138.32,138.29,3.85]
[1764032558609,16.308864,138.34,138.29,3.2]
[1764032558815,21.413158,138.34,138.3,0.65]
[1764032559532,5.104294,138.33,138.3,3.2]
[1764032559727,4.404294,138.32,138.3,3.2]
[1764032559939,4.404294,138.32,138.28,63.15]
[1764032560123,4.404294,138.32,138.29,0.65]